[Event "21st Open Gran Hotel Bali-A 2024"]
[Site "Benidorm"]
[Date "2024.11.30"]
[Round "2.6"]
[White "Pardo Ruiz, Carlos"]
[Black "Ilinca, Felix-Antonio"]
[Result "0-1"]
[ECO "B69"]
[WhiteElo "2184"]
[BlackElo "2470"]
[Annotator "TA"]
[PlyCount "84"]
[EventDate "2024.11.26"]
[EventType "swiss"]
[EventCountry "ESP"]
[SourceTitle "playchess.com"]
[Source "ChessBase"]
[SourceQuality "1"]
[TimeControl "5400+30"]

{[%evp 25,84,44,66,43,25,4,33,25,18,6,61,55,56,52,70,47,62,-24,-16,-20,43,0,-22,-213,-220,-291,-283,-323,-331,-354,-342,-354,-320,-635,-357,-456,-406,-720,-731,-690,-741,-737,-700,-671,-685,-29989,-29990,-29989,-29981,-5552,-6041,-6041,-5535,-4938,-1985,-29991,-29990,-29990,-29991,-29997,-29998]} 1. e4 {[%emt 0:00:01]} c5 {[%emt 0:10:37]} 2. Nf3 {[%emt 0:00:42]} d6 {[%emt 0:00:24]} 3. d4 {[%emt 0:00:50]} cxd4 {[%emt 0:00:35]} 4. Nxd4 {[%emt 0:00:35]} Nf6 {[%emt 0:00:24]} 5. Nc3 {[%emt 0:00:43]} Nc6 {[%emt 0:00:31]} 6. Bg5 {[%emt 0:01:25]} e6 {[%emt 0:00:27]} 7. Qd2 {[%emt 0:00:54]} a6 {[%emt 0:00:32]} 8. O-O-O {[%emt 0:00:50]} Bd7 {[%emt 0:00:26]} 9. f4 {[%emt 0:01:20]} Be7 {[%emt 0:00:35]} 10. Nf3 {[%emt 0:01:53]} b5 {[%emt 0:00:47][%cal Bb7b5,Bb5b4][%mdl 32]} 11. Bxf6 {[%emt 0:01:26]} gxf6 {[%emt 0:00:19]} 12. f5 {[%emt 0:00:19]} Qb6 {[%emt 0:00:41]} 13. Kb1 {[%emt 0:00:25]} O-O-O {[%emt 0:01:33]} 14. fxe6 {[%emt 0:00:52]} fxe6 {[%emt 0:00:25]} 15. a4 {[%emt 0:00:26]} b4 {[%emt 0:09:38]} 16. Ne2 {[%emt 0:01:13] White is slightly better.} e5 {[%emt 0:07:06] Wards off Nf4} 17. Qd5 {[%emt 0:12:23] Prevents Be6} Na5 {[%emt 0:14:48]} ({Black should play} 17... f5 $11) 18. b3 $14 {[%emt 0:06:12]} Bc6 {[%emt 0:09:35]} 19. Qe6+ {[%emt 0:02:31]} Rd7 {[%emt 0:00:28][%cal Oa5b7]} 20. Ng3 {[%emt 0:01:18]} Nb7 {[%emt 0:05:29][%cal Ba5b7,Bb7c5,Bc5e4,Be4c3][%mdl 32]} 21. Nf5 {[%emt 0:05:39]} ({White should try} 21. Qg4 $14) 21... Bd8 $1 $11 {[%emt 0:02:48] Black wants to play ...Nc5.} 22. Qc4 {[%emt 0:10:12]} Kb8 {[%emt 0:05:02]} (22... Nc5 $1 $11 23. Rxd6 (23. Nxd6+ $2 Kc7 $19) 23... Rxd6 24. Nxd6+ Kb8) 23. Be2 {[%emt 0:07:49]} ({Reject} 23. Qxa6 Bxe4 24. N3h4 Rf8 $11) (23. Ne3 $14) 23... Nc5 {[%emt 0:07:14]} 24. Nxd6 {[%emt 0:11:40] Loses the game.} (24. Nd2 $11) 24... Bc7 $19 {[%emt 0:03:42]} 25. Nf7 {[%emt 0:04:09] [#]} Rf8 {[%emt 0:02:17]} 26. Nh6 {[%emt 0:05:25]} Nxe4 {[%emt 0:02:33]} 27. Rxd7 {[%emt 0:01:28]} ({Avoid the trap} 27. a5 $2 Qxa5 (27... Qb7 28. Kb2 $19) 28. Nd4 Rxd4 $19) 27... Nc3+ {[%emt 0:00:10]} 28. Kb2 {[%emt 0:01:08]} Bxd7 {[%emt 0:00:21]} 29. g4 $2 {[%emt 0:00:47]} (29. Bd3) 29... Be6 {[%emt 0:04:48]} 30. Qxa6 {[%emt 0:01:19]} e4 {[%emt 0:00:16][%cal Oc3e2] ...Nxe2! would now be deadly. White is weak on the dark squares} 31. Re1 {[%emt 0:13:24]} (31. Qxb6+ $142 Bxb6 32. Nd2) 31... Nxe2 {[%emt 0:02:29]} 32. Qxe2 {[%emt 0:02:13]} exf3 {[%emt 0:00:16]} 33. Qxf3 {[%emt 0:01:10]} Qd4+ {[%emt 0:00:29]} 34. Ka2 {[%emt 0:00:49]} Be5 {[%emt 0:00:14]} 35. Rb1 {[%emt 0:00:21] Against Qb2+} Rc8 {[%emt 0:00:19]} 36. Qe2 {[%emt 0:00:19]} Qd7 {[%emt 0:01:13][%cal Rd7a4]} 37. Rb2 {[%emt 0:01:58]} Qxa4+ {[%emt 0:00:18]} 38. Kb1 {[%emt 0:00:03]} Qc6 {[%emt 0:00:29]} 39. Qe1 {[%emt 0:00:35] Prevents Qh1.} Qc3 {[%emt 0:00:21]} (39... Bxb2 $142 40. Qxb4+ Ka8) 40. Qc1 {[%emt 0:01:17]} Rd8 {[%emt 0:00:47] Black mates.} 41. Ra2 {[%emt 0:00:43] [#]} Bxb3 $1 {[%emt 0:00:13]} 42. Rb2 {[%emt 0:01:28] [#]} (42. cxb3 Qxb3+) 42... Rd1 $3 {[%emt 0:00:14][%mdl 512] Weighted Error Value: White=0.93/Black=0.58.  Loses game:     	White=1     	---        Mistake:       	White=4     	Black=2      Inaccurate:     	White=1     	Black=1      OK:         	White=5     	Black=9      Best:        	White=1     	Black=3      Strong:       	---       	Black=1} 0-1

[Event "21st Open Gran Hotel Bali-A 2024"]
[Site "Benidorm"]
[Date "2024.11.30"]
[Round "2.7"]
[White "Mitusov, Semen"]
[Black "Hristodorescu, Daniel"]
[Result "1-0"]
[ECO "C54"]
[WhiteElo "2465"]
[BlackElo "2158"]
[Annotator "TA"]
[PlyCount "75"]
[EventDate "2024.11.26"]
[EventType "swiss"]
[EventCountry "ESP"]
[SourceTitle "playchess.com"]
[Source "ChessBase"]
[SourceQuality "1"]
[TimeControl "5400+30"]

{[%evp 23,75,60,59,57,54,61,60,76,60,50,54,35,45,25,64,29,126,127,123,106,141,138,136,135,135,134,166,156,204,198,195,205,252,251,229,210,437,436,402,343,533,509,602,591,751,718,697,695,624,590,29961,29945,29984,29985]} 1. e4 {[%emt 0:02:20]} e5 {[%emt 0:00:13]} 2. Nf3 {[%emt 0:00:43]} Nc6 {[%emt 0:00:06]} 3. Bc4 {[%emt 0:00:04]} Bc5 {[%emt 0:03:40]} 4. c3 {[%emt 0:00:07]} Nf6 {[%emt 0:01:18]} 5. d4 {[%emt 0:01:40]} exd4 {[%emt 0:00:48]} 6. e5 {[%emt 0:01:07]} d5 {[%emt 0:01:43]} 7. Bb5 {[%emt 0:00:38]} Ne4 {[%emt 0:02:01]} 8. cxd4 {[%emt 0:00:12]} Bb4+ {[%emt 0:01:00]} 9. Bd2 {[%emt 0:03:58]} Nxd2 {[%emt 0:01:39]} 10. Nbxd2 {[%emt 0:00:30]} O-O {[%emt 0:00:11]} 11. O-O {[%emt 0:03:03]} Bg4 {[%emt 0:10:35]} 12. Bxc6 {[%emt 0:09:56]} bxc6 {[%emt 0:00:09]} 13. Qa4 {[%emt 0:04:53]} Rb8 {[%emt 0:01:25]} 14. Qxc6 {[%emt 0:03:16]} Bxd2 {[%emt 0:01:20]} 15. Nxd2 {[%emt 0:00:05] White is slightly better.} Rxb2 {[%emt 0:00:08]} 16. Qc3 {[%emt 0:06:21]} Rb6 {[%emt 0:01:58]} 17. Rfc1 {[%emt 0:04:25]} Qg5 {[%emt 0:07:27]} 18. Nf1 {[%emt 0:02:06][%cal Oc3g3]} f5 {[%emt 0:14:04]} 19. h3 {[%emt 0:19:28]} (19. Qxc7 f4 20. Qc3 (20. Qxa7 $2 Bh3 $19) 20... h5 $11) (19. f3 {is more complex.} Bh3 20. Rc2 Rg6 21. Qc5) 19... Bh5 {[%emt 0:08:46] [#] Black is now going downhill.} (19... Be2 $11) 20. Qg3 $1 $36 {[%emt 0:01:54][%mdl 2048] White is on the roll.} (20. Qxc7 Rg6 21. g3 (21. Qxa7 $2 Qxg2#) 21... f4 $11) 20... Qe7 {[%emt 0:01:10]} 21. f4 {[%emt 0:00:11]} h6 {[%emt 0:01:43]} 22. Rc5 {[%emt 0:01:20]} c6 {[%emt 0:03:30]} 23. Rac1 {[%emt 0:00:22][%cal Ba1c1,Bc1c2,Bc2b2,Bb2b7,Bb7g7][%mdl 32]} Be8 {[%emt 0:00:17]} 24. Nd2 {[%emt 0:05:29][%cal Bf1d2,Bd2b3,Bb3c5][%mdl 32]} Rb2 {[%emt 0:02:03]} 25. Nb3 {[%emt 0:04:16]} Qb7 {[%emt 0:10:07]} (25... Qc7 $16 26. R5c2 Rxc2 27. Rxc2 Kh7) 26. R5c2 $18 {[%emt 0:02:51]} Rxc2 {[%emt 0:00:40]} 27. Rxc2 {[%emt 0:00:01]} Kh7 {[%emt 0:01:53]} 28. Qc3 {[%emt 0:01:26]} g5 {[%emt 0:01:52]} 29. Rb2 {[%emt 0:01:38]} Rg8 $2 {[%emt 0:06:40]} (29... Qg7 {is a better defense.} 30. Nc5 Rf7) 30. Nc5 {[%emt 0:01:05]} Qc8 {[%emt 0:00:06]} 31. fxg5 {[%emt 0:05:11]} f4 {[%emt 0:07:46]} (31... Rxg5 {might work better.} 32. Rb7+ Rg7) 32. Rb7+ {[%emt 0:02:03]} Kh8 {[%emt 0:00:12]} 33. gxh6 {[%emt 0:06:18]} Rg3 {[%emt 0:03:33]} 34. Qc2 {[%emt 0:00:10]} Bg6 {[%emt 0:00:14]} 35. Qb2 {[%emt 0:00:06]} Qf5 {[%emt 0:01:28] [#] White must now prevent ...f3.} 36. Rg7 {[%emt 0:03:30] White wants to mate with Qb8+.} Be8 {[%emt 0:06:45]} 37. Qb8 {[%emt 0:01:49]} (37. Rxa7 $2 {loses.} f3 38. Re7 (38. Rg7 $2 fxg2 $19) 38... Rxg2+ $19) 37... Qh5 {[%emt 0:00:00]} 38. Ne6 {[%emt 0:00:33] Weighted Error Value: White=0.07 (flawless) /Black=0.62.  Mistake:       	---       	Black=4      Inaccurate:     	White=1     	Black=2      OK:         	White=13    	Black=7      Best:        	---       	Black=1      Strong:       	White=1     	---} ({Inferior is} 38. Qxa7 Qe2 39. Rh7+ Kg8 40. Rg7+ Kh8 41. Rh7+ Kg8 42. Rg7+ Kh8 $11) 1-0

[Event "21st Open Gran Hotel Bali-A 2024"]
[Site "Benidorm"]
[Date "2024.11.30"]
[Round "2.8"]
[White "Korneev Leskova, Svyatoslav"]
[Black "Movsziszian, Karen"]
[Result "1/2-1/2"]
[ECO "A21"]
[WhiteElo "2181"]
[BlackElo "2439"]
[Annotator "TA"]
[PlyCount "85"]
[EventDate "2024.11.26"]
[EventType "swiss"]
[EventCountry "ESP"]
[SourceTitle "playchess.com"]
[Source "ChessBase"]
[SourceQuality "1"]
[TimeControl "5400+30"]

{[%evp 12,85,17,6,-3,-4,-4,2,0,0,33,19,29,0,5,0,0,3,0,0,16,18,8,12,30,12,47,9,11,20,28,24,76,74,73,0,17,10,22,0,21,0,0,0,0,0,0,0,0,0,0,0,0,0,0,0,0,0,8,8,8,0,0,0,0,0,0,0,0,0,8,8,8,0,0,0]} 1. c4 {[%emt 0:07:54]} d6 {[%emt 0:00:22]} 2. Nc3 {[%emt 0:00:51]} e5 {[%emt 0:00:11]} 3. g3 {[%emt 0:00:38]} f5 {[%emt 0:00:56]} 4. Bg2 {[%emt 0:00:32]} Nf6 {[%emt 0:00:04]} 5. d3 {[%emt 0:00:25]} Be7 {[%emt 0:00:24]} 6. e4 {[%emt 0:00:47]} c6 {[%emt 0:00:14]} 7. Nge2 {[%emt 0:00:41]} O-O {[%emt 0:00:06]} 8. O-O {[%emt 0:00:29]} Qe8 {[%emt 0:01:56]} 9. f3 {[%emt 0:05:32]} Na6 {[%emt 0:03:11]} 10. Be3 {[%emt 0:06:03]} Kh8 {[%emt 0:00:24]} 11. Qd2 {[%emt 0:10:31]} Nc7 {[%emt 0:09:18]} 12. exf5 {[%emt 0:02:28]} Bxf5 {[%emt 0:00:12]} 13. d4 {[%emt 0:00:21]} c5 {[%emt 0:07:44]} 14. d5 {[%emt 0:09:11]} b5 {[%emt 0:00:14]} 15. b3 {[%emt 0:02:02]} bxc4 {[%emt 0:03:02]} 16. bxc4 {[%emt 0:00:07]} Qg6 {[%emt 0:00:03]} 17. Rac1 {[%emt 0:14:37]} Rab8 {[%emt 0:01:45]} 18. g4 {[%emt 0:00:36]} Bd3 {[%emt 0:11:43]} 19. g5 {[%emt 0:00:48]} Nh5 {[%emt 0:02:35]} 20. Ne4 {[%emt 0:00:24]} Bxe2 {[%emt 0:06:12]} 21. Qxe2 {[%emt 0:00:05]} Nf4 {[%emt 0:06:42]} (21... Na8 $11 {keeps the balance.}) 22. Bxf4 $16 {[%emt 0:00:13]} exf4 {[%emt 0:02:06] [#]} 23. Nxc5 $1 {[%emt 0:06:29]} Rfe8 {[%emt 0:08:38]} (23... Qxg5 $2 24. Nd7 $18) (23... Bxg5 24. Ne4) 24. Ne4 $1 {[%emt 0:02:20]} Bxg5 {[%emt 0:00:46]} 25. Rb1 {[%emt 0:05:12]} Bf6 {[%emt 0:00:35]} 26. Qf2 {[%emt 0:03:24]} Rxb1 {[%emt 0:21:19]} 27. Rxb1 {[%emt 0:01:44]} Na6 $1 {[%emt 0:00:01][%cal Oa6c5]} 28. Qxa7 {[%emt 0:08:43]} Nc5 $1 {[%emt 0:00:13][%cal Rc5e4]} 29. Rb8 {[%emt 0:00:56]} Nxe4 {[%emt 0:04:23]} 30. Rxe8+ $1 {[%emt 0:00:28]} (30. fxe4 $2 {perishes.} Bd4+ 31. Qxd4 Rxb8 $19) 30... Qxe8 {[%emt 0:00:02]} 31. fxe4 $11 {[%emt 0:00:09][%mdl 4096] Endgame KQB-KQB. White is a pawn up.} g6 {[%emt 0:00:29]} 32. Bf3 {[%emt 0:01:42]} Qe5 {[%emt 0:01:42]} 33. Qf7 {[%emt 0:02:24]} Bg7 $1 {[%emt 0:03:07] Inhibits Qf8+.} 34. Qe6 {[%emt 0:02:07] Active counter play!} Qxe6 {[%emt 0:02:54]} 35. dxe6 {[%emt 0:00:06] KB-KB. White is a pawn up.} Bd4+ {[%emt 0:00:02]} 36. Kf1 {[%emt 0:05:20] Threatening mate with e7.} Kg7 {[%emt 0:00:01]} 37. Ke2 {[%emt 0:00:19]} Kf6 {[%emt 0:00:07]} 38. Kd3 {[%emt 0:01:35]} Bb6 {[%emt 0:00:08]} 39. e5+ {[%emt 0:01:07]} dxe5 {[%emt 0:00:55]} 40. Bd5 {[%emt 0:00:37]} f3 {[%emt 0:04:06]} 41. Bxf3 {[%emt 0:00:14]} Kxe6 {[%emt 0:00:02]} 42. Ke4 {[%emt 0:00:20]} Kd6 {[%emt 0:00:10]} 43. Bg4 {[%emt 0:00:50]} 1/2-1/2

[Event "21st Open Gran Hotel Bali-A 2024"]
[Site "Benidorm"]
[Date "2024.11.30"]
[Round "2.9"]
[White "Marin, Mihail"]
[Black "Yuste Valenzuela, Alejandro"]
[Result "1-0"]
[ECO "E60"]
[WhiteElo "2431"]
[BlackElo "2150"]
[Annotator "TA"]
[PlyCount "75"]
[EventDate "2024.11.26"]
[EventType "swiss"]
[EventCountry "ESP"]
[SourceTitle "playchess.com"]
[Source "ChessBase"]
[SourceQuality "1"]
[TimeControl "5400+30"]

{[%evp 17,75,13,34,-13,0,0,14,12,24,0,4,-11,57,-7,-8,-8,306,322,320,321,315,322,320,312,512,506,564,506,520,501,552,593,590,583,633,510,937,863,956,820,1101,1135,1804,168,167,131,128,0,171,57,52,45,96,118,100,104,29987,29987,29994,29995]} 1. d4 {[%emt 0:00:03]} Nf6 {[%emt 0:00:07]} 2. Nf3 {[%emt 0:00:04]} g6 {[%emt 0:01:10]} 3. g3 {[%emt 0:00:15]} Bg7 {[%emt 0:00:18]} 4. Bg2 {[%emt 0:00:09]} O-O {[%emt 0:00:23]} 5. O-O {[%emt 0:00:09]} d6 {[%emt 0:00:10]} 6. c4 {[%emt 0:00:06]} Bf5 {[%emt 0:02:30]} 7. Nc3 {[%emt 0:07:37]} Ne4 {[%emt 0:00:09]} 8. Nh4 {[%emt 0:06:02]} Nxc3 {[%emt 0:00:29]} 9. bxc3 {[%emt 0:00:05]} Bc8 {[%emt 0:00:18]} 10. Ba3 {[%emt 0:06:33]} (10. f4 $14 {might be stronger.}) 10... Nc6 {[%emt 0:11:18]} 11. c5 {[%emt 0:01:11]} d5 {[%emt 0:08:33]} 12. e4 {[%emt 0:04:24]} Be6 {[%emt 0:14:25]} 13. Rb1 {[%emt 0:01:26]} Na5 {[%emt 0:05:13]} 14. Qa4 {[%emt 0:05:57]} Nc4 {[%emt 0:09:51]} ({Black should try} 14... c6 $1 $11) 15. Bc1 {[%emt 0:06:13]} (15. Rxb7 $14 dxe4 16. Bc1 (16. Rxa7 $2 g5 $19) (16. Bxe4 Nd2 $17)) 15... b6 $11 {[%emt 0:07:02]} 16. Bf4 {[%emt 0:07:10] Strongly threatening exd5.} Bf6 $2 {[%emt 0:16:58][%mdl 8192]} (16... bxc5 $11 17. dxc5 c6 (17... Bxc3 $2 18. exd5 Bxd5 19. Rfc1 $18)) 17. exd5 $1 $18 {[%emt 0:08:45]} Bxd5 {[%emt 0:00:47] [#]} 18. Bxc7 $1 {[%emt 0:00:25][%mdl 512]} Qxc7 {[%emt 0:01:16]} 19. Bxd5 {[%emt 0:00:05]} Nd2 {[%emt 0:02:28] Strongly threatening ...Rad8.} 20. cxb6 {[%emt 0:03:44]} Qd6 $2 {[%emt 0:06:42]} (20... axb6 21. Bxa8 Nxf1) 21. Bxa8 {[%emt 0:12:51]} Rxa8 {[%emt 0:01:20]} 22. b7 {[%emt 0:02:02]} Rb8 {[%emt 0:00:15]} 23. Rfd1 {[%emt 0:00:48]} Nxb1 {[%emt 0:00:32]} 24. Rxb1 {[%emt 0:00:05]} Bxh4 {[%emt 0:00:06]} 25. gxh4 {[%emt 0:00:04][%mdl 4096] Endgame KQR-KQR. White is two pawns up.} Qf4 {[%emt 0:00:37]} 26. Qc6 {[%emt 0:03:46]} h5 {[%emt 0:01:12]} (26... Qg4+ $142 27. Qg2 Qf5) 27. Qc8+ {[%emt 0:04:07]} Kg7 {[%emt 0:00:40]} 28. Re1 {[%emt 0:02:55]} e6 {[%emt 0:00:38]} 29. h3 {[%emt 0:00:41]} g5 {[%emt 0:03:53]} 30. hxg5 $2 {[%emt 0:07:04]} (30. Re5 Rxc8 31. bxc8=Q Qxh4 32. Qd8) 30... Qxg5+ {[%emt 0:00:41]} 31. Kf1 {[%emt 0:00:50]} Qb5+ {[%emt 0:00:07]} 32. Kg1 {[%emt 0:00:44]} Qg5+ $1 {[%emt 0:01:53] [#]} 33. Kh1 {[%emt 0:04:45]} (33. Kh2 $1 $18 Qf4+ 34. Kg2 Qg5+ 35. Kf3 (35. Kh2 Qf4+ 36. Kg2 Qg5+ 37. Kf3 Qf5+ 38. Kg3 Qg5+ 39. Kf3 Qf5+ 40. Ke3 Qxh3+ 41. Kd2 Qh2 $18) 35... Qd5+ 36. Ke3 Qxb7 37. Rg1+ Kh7 38. Qxb7 Rxb7 39. c4) 33... Qd5+ $14 {[%emt 0:00:08]} 34. Kh2 {[%emt 0:00:10]} Qxb7 {[%emt 0:00:16]} (34... Rxb7 $14 35. Rg1+ Kf6) 35. Qc5 $36 {[%emt 0:02:22][%mdl 2048] White threatens Rg1+ and mate. White has strong initiative. White is more active.} Qd5 {[%emt 0:04:55]} 36. Rg1+ {[%emt 0:02:56]} ({Of course not} 36. Qxa7 $6 Rb2 37. Rg1+ Kf6 $15) 36... Kh7 $2 {[%emt 0:00:21][%mdl 8192] [#]} (36... Kf6 $16) 37. Qc7 $1 {[%emt 0:01:17]} ({Worse is} 37. Qxa7 Qd6+ 38. Kh1 (38. Rg3 Qf4 $11) 38... Qf4 $11) 37... Rb7 {[%emt 0:00:47]} 38. Qg3 {[%emt 0:00:07]} 1-0

[Event "21st Open Gran Hotel Bali-A 2024"]
[Site "Benidorm"]
[Date "2024.11.30"]
[Round "2.10"]
[White "Rodriguez Lopez, Rafael"]
[Black "Elsness, Frode"]
[Result "1/2-1/2"]
[ECO "A33"]
[WhiteElo "2164"]
[BlackElo "2424"]
[Annotator "TA"]
[PlyCount "104"]
[EventDate "2024.11.26"]
[EventType "swiss"]
[EventCountry "ESP"]
[SourceTitle "playchess.com"]
[Source "ChessBase"]
[SourceQuality "1"]
[TimeControl "5400+30"]

{[%evp 14,104,19,20,11,20,81,83,68,86,73,54,49,41,38,33,21,33,58,52,62,49,47,39,45,25,76,73,80,16,14,14,31,0,8,8,24,27,43,0,19,18,37,11,62,8,15,0,8,9,39,41,109,105,98,104,229,98,125,104,119,75,279,279,279,279,287,287,279,279,280,265,279,272,294,87,96,97,97,97,98,99,129,0,45,45,122,115,122,123,156,205,249]} 1. c4 {[%emt 0:00:02]} c5 {[%emt 0:09:54]} 2. Nf3 {[%emt 0:00:12]} Nf6 {[%emt 0:00:09]} 3. Nc3 {[%emt 0:00:05]} Nc6 {[%emt 0:00:25]} 4. d4 {[%emt 0:00:04]} cxd4 {[%emt 0:00:03]} 5. Nxd4 {[%emt 0:00:04]} e6 {[%emt 0:01:05]} 6. a3 {[%emt 0:00:09]} d5 {[%emt 0:03:25]} 7. cxd5 {[%emt 0:00:50]} exd5 {[%emt 0:03:37]} 8. Bg5 {[%emt 0:02:44]} Bc5 {[%emt 0:06:44]} 9. e3 {[%emt 0:01:13]} Be6 {[%emt 0:04:01]} (9... O-O $11) 10. Bb5 $16 {[%emt 0:05:15]} Rc8 {[%emt 0:03:35]} 11. O-O {[%emt 0:00:23][%cal Oe3e4] White is much more active. The black rooks are passive.} O-O {[%emt 0:01:43]} 12. Nxc6 {[%emt 0:06:27]} (12. Bxf6 {with more complications.} Qxf6 13. Nxe6 fxe6 14. Nxd5 Qxb2 15. Rb1) 12... bxc6 {[%emt 0:00:11]} 13. Ba6 $1 {[%emt 0:00:07]} Rb8 {[%emt 0:03:45][%cal Oh7h6]} 14. b4 {[%emt 0:02:52]} Be7 {[%emt 0:09:28]} 15. Rc1 {[%emt 0:05:08]} Bc8 {[%emt 0:03:38]} 16. Bxc8 {[%emt 0:01:50]} Rxc8 {[%emt 0:02:01]} 17. Qa4 {[%emt 0:01:58]} Qb6 {[%emt 0:03:54]} 18. Rfd1 {[%emt 0:00:37]} Rfd8 {[%emt 0:01:27]} 19. Ne2 {[%emt 0:03:04]} h6 {[%emt 0:03:04]} (19... c5 $1 $11 {remains equal.}) 20. Bxf6 {[%emt 0:05:30]} Bxf6 {[%emt 0:00:15]} 21. Nd4 {[%emt 0:00:20]} (21. Rc5 $1 $16) 21... c5 $11 {[%emt 0:11:06]} 22. bxc5 {[%emt 0:00:43]} Rxc5 {[%emt 0:00:03]} 23. Rxc5 {[%emt 0:01:58]} Qxc5 {[%emt 0:00:35]} 24. g3 {[%emt 0:01:13]} Bxd4 {[%emt 0:09:53]} 25. Rxd4 {[%emt 0:02:58][%mdl 4096] Endgame KQR-KQR} Rb8 $1 {[%emt 0:02:01] Wards off Qb3} 26. Rd1 {[%emt 0:04:13]} a5 {[%emt 0:01:55]} 27. Qf4 {[%emt 0:05:47]} Re8 {[%emt 0:08:03]} 28. a4 {[%emt 0:03:25]} f6 {[%emt 0:04:50]} (28... Re4 $11 29. Qb8+ Kh7) 29. Rd4 {[%emt 0:02:05]} (29. Rb1 $1 $14) 29... Re5 {[%emt 0:01:00]} 30. Kg2 {[%emt 0:00:25]} Qc6 {[%emt 0:00:22]} 31. h4 {[%emt 0:05:20]} Kf7 {[%emt 0:01:32]} 32. Qf3 {[%emt 0:00:26]} Kg8 {[%emt 0:01:10]} ({Black should play} 32... g6 $14) 33. Qd1 $16 {[%emt 0:00:28]} Kf7 {[%emt 0:01:03]} 34. Qb3 {[%emt 0:00:37]} f5 {[%emt 0:00:45]} (34... Kf8 $16 {was worth a try.}) 35. f4 {[%emt 0:03:33]} (35. Qb8 $18 {is more deadly.} Re4 36. Rxe4 fxe4 37. Qa7+ Kg6 38. Qxa5) 35... Re4 {[%emt 0:00:28]} 36. Qxd5+ {[%emt 0:00:15]} Qxd5 {[%emt 0:00:18]} 37. Rxd5 {[%emt 0:00:05] KR-KR. White is a pawn up.} Kf6 $2 {[%emt 0:00:55]} (37... Kg6 $16) 38. Rxa5 $18 {[%emt 0:00:12]} Rxe3 {[%emt 0:00:01]} 39. Ra6+ {[%emt 0:06:02]} Kf7 {[%emt 0:00:04]} 40. h5 {[%emt 0:00:08]} Ra3 {[%emt 0:00:20]} 41. a5 {[%emt 0:00:17]} Ra2+ {[%emt 0:01:25]} 42. Kh3 {[%emt 0:00:15]} Kg8 {[%emt 0:00:39]} 43. Ra8+ {[%emt 0:00:14]} Kf7 {[%emt 0:00:11]} 44. a6 $2 {[%emt 0:00:15]} (44. Ra7+ $1 $18 {is the precise move to win.} Kf6 45. a6) 44... Ke7 {[%emt 0:00:46]} 45. Ra7+ {[%emt 0:04:18]} Kf6 {[%emt 0:00:03]} 46. g4 $1 {[%emt 0:00:41]} Ra3+ {[%emt 0:00:14]} 47. Kh4 {[%emt 0:00:52] Black must now prevent g5+.} fxg4 {[%emt 0:00:48]} 48. Kxg4 {[%emt 0:00:10]} Ra5 {[%emt 0:00:38]} 49. Ra8 {[%emt 0:00:18]} Kf7 {[%emt 0:00:52]} (49... Ke7 $14) 50. f5 {[%emt 0:02:04]} Kf6 {[%emt 0:00:32] [#]} 51. a7 $1 {[%emt 0:02:29]} Kf7 {[%emt 0:00:04] [#] Wards off Rf8+} 52. f6 {[%emt 0:00:28]} Ra1 {[%emt 0:00:27]} 1/2-1/2

[Event "21st Open Gran Hotel Bali-A 2024"]
[Site "Benidorm"]
[Date "2024.11.30"]
[Round "2.11"]
[White "Cruz Lledo, Pablo"]
[Black "Chiszko, Oskar"]
[Result "1-0"]
[ECO "A48"]
[WhiteElo "2411"]
[BlackElo "2140"]
[Annotator "TA"]
[PlyCount "73"]
[EventDate "2024.11.26"]
[EventType "swiss"]
[EventCountry "ESP"]
[SourceTitle "playchess.com"]
[Source "ChessBase"]
[SourceQuality "1"]
[TimeControl "5400+30"]

{[%evp 13,73,0,6,0,5,7,20,21,42,15,7,31,37,16,34,25,40,6,83,76,125,110,115,91,146,85,86,88,100,85,93,52,186,70,158,122,201,132,481,445,572,564,640,606,816,816,1025,1029,1019,965,1013,970,1008,966,1123,1111,1478,2095,2220,1975,29971,11645]} 1. d4 {[%emt 0:02:59]} g6 {[%emt 0:00:05]} 2. Bf4 {[%emt 0:00:49]} Bg7 {[%emt 0:00:11]} 3. e3 {[%emt 0:00:07]} Nf6 {[%emt 0:00:04]} 4. Be2 {[%emt 0:01:16]} d6 {[%emt 0:02:17]} 5. h3 {[%emt 0:00:04]} Nbd7 {[%emt 0:00:29]} 6. Nf3 {[%emt 0:00:08]} O-O {[%emt 0:02:04]} 7. O-O {[%emt 0:00:07]} b6 {[%emt 0:05:08]} 8. a4 {[%emt 0:00:06][%cal Ba2a4,Ba4a5][%mdl 32]} Bb7 {[%emt 0:02:01]} 9. a5 {[%emt 0:00:16]} a6 {[%emt 0:01:12]} 10. axb6 {[%emt 0:07:18]} c5 {[%emt 0:05:02]} 11. Na3 {[%emt 0:01:36][%cal Bb1a3,Ba3c4,Bc4a5][%mdl 32]} cxd4 {[%emt 0:01:08]} 12. exd4 {[%emt 0:06:23]} Qxb6 {[%emt 0:00:20][%cal Ob6c7]} 13. Nc4 {[%emt 0:00:54]} Qc7 {[%emt 0:00:35]} 14. Na5 {[%emt 0:00:16]} Be4 {[%emt 0:03:52]} 15. c4 {[%emt 0:02:18][%cal Oc4c5] Wards off Nd5} Qb6 {[%emt 0:03:23]} (15... Rab8 $1 $11 {remains equal.}) 16. b3 {[%emt 0:01:54]} h6 {[%emt 0:02:49]} (16... Rae8 $142) 17. Qd2 {[%emt 0:07:21]} g5 {[%emt 0:02:09]} 18. Be3 {[%emt 0:00:14]} d5 {[%emt 0:08:23]} (18... Qc7 $142) 19. h4 {[%emt 0:03:03]} (19. c5 $142 Qc7 20. Rfc1) 19... Ng4 $16 {[%emt 0:07:00]} 20. hxg5 {[%emt 0:02:42]} Nxe3 {[%emt 0:00:10]} 21. Qxe3 {[%emt 0:03:55]} Qg6 {[%emt 0:04:33]} 22. Rad1 {[%emt 0:10:58]} f5 {[%emt 0:08:27]} (22... Rfe8 $1 $14) 23. Nh4 {[%emt 0:15:31]} (23. gxf6 $18 Nxf6 24. Nc6) 23... Qb6 {[%emt 0:01:38]} (23... Qxg5 $14 24. Qxg5 hxg5) 24. f3 {[%emt 0:06:12][%cal Bf2f3,Bf3e4][%mdl 32]} f4 {[%emt 0:01:43]} (24... Bc2 $16) 25. Qc3 {[%emt 0:01:38]} e5 $2 {[%emt 0:03:32][%mdl 8192] [#]} (25... Bh7 $16) 26. c5 $1 $18 {[%emt 0:01:08]} ({Less strong is} 26. fxe4 exd4 27. c5 Nxc5 $14) 26... Qc7 {[%emt 0:05:34]} 27. fxe4 {[%emt 0:01:49]} exd4 {[%emt 0:00:15]} 28. Qh3 {[%emt 0:00:36]} Ne5 {[%emt 0:05:46]} 29. gxh6 {[%emt 0:04:48]} Bf6 {[%emt 0:00:21]} 30. Rxf4 {[%emt 0:02:17]} Kh8 {[%emt 0:00:35]} 31. b4 {[%emt 0:03:44]} Bg5 {[%emt 0:02:07]} 32. Rf5 {[%emt 0:00:46]} Rxf5 {[%emt 0:01:31]} 33. Nxf5 {[%emt 0:00:30][%cal Bh4f5,Bf5d6,Bd6e4][%mdl 32]} dxe4 {[%emt 0:00:43]} 34. Rxd4 {[%emt 0:00:18]} Rd8 {[%emt 0:01:51]} 35. Rxd8+ {[%emt 0:01:18]} Qxd8 {[%emt 0:00:06]} 36. Nd6 {[%emt 0:00:23]} Qf6 {[%emt 0:01:57]} 37. Nxe4 {[%emt 0:04:15]} 1-0